bitfinex-derivatives/quotes_BNBF0:USTF0_20250617
["timestamp","ask_amount","ask_price","bid_price","bid_amount"]
[1750171775013,1.52190784,652.3,652.1,2.926]
[1750171775314,1.52190784,652.29,652.1,2.926]
[1750171776014,1.52190784,652.3,652.1,2.926]
[1750171776418,1.52190784,652.29,652.1,2.926]
[1750171776718,1.52190784,652.29,652.11,1.441]
[1750171777419,1.52190784,652.31,652.11,1.441]
[1750171777618,1.52190784,652.32,652.11,1.441]
[1750171778115,1.52190784,652.34,652.11,1.441]
[1750171781518,1.52190784,652.33,652.11,1.441]
[1750171782018,1.52190784,652.35,652.11,1.441]
[1750171783916,1.52190784,652.34,652.11,1.441]
[1750171784522,1.52190784,652.33,652.11,1.441]
[1750171784816,1.52190784,652.32,652.11,1.441]
[1750171787224,1.52190784,652.31,652.11,1.441]
[1750171787623,1.52190784,652.32,652.11,1.441]
[1750171788119,1.52190784,652.31,652.11,1.441]
[1750171788323,1.52190784,652.32,652.11,1.441]
[1750171789023,1.52190784,652.31,652.11,1.441]
[1750171789625,1.52190784,652.31,652.1,2.926]
[1750171789825,1.52190784,652.3,652.1,2.926]
[1750171791519,1.52190784,652.36,652.1,2.926]
[1750171793725,1.52190784,652.36,652.11,1.195]
[1750171795426,1.52190784,652.38,652.12,1.364]
[1750171796829,0.26679956,652.42,652.12,1.364]
[1750171799430,0.26679956,652.42,652.13,1.417]
[1750171801430,1.7887074,652.42,652.13,1.417]
[1750171803330,1.52190784,652.41,652.13,1.417]
[1750171803531,1.52190784,652.41,652.14,1.418]
[1750171804030,1.7887074,652.42,652.14,1.418]
[1750171805233,1.52190784,652.4,652.14,1.418]
[1750171805628,0.26679956,652.42,652.14,1.418]
[1750171805629,1.52190784,652.41,652.14,1.418]
[1750171806733,1.52190784,652.35,652.14,1.418]
[1750171807037,1.52190784,652.35,652.15,1.265]
[1750171807437,1.52190784,652.36,652.15,1.265]
[1750171807633,1.52190784,652.35,652.15,1.265]
[1750171808334,1.52190784,652.34,652.15,1.265]
[1750171812841,1.52190784,652.33,652.15,1.265]
[1750171815641,1.52190784,652.31,652.15,1.265]
[1750171816540,0.26679956,652.42,652.15,1.265]
[1750171816541,1.52190784,652.33,652.15,1.265]
[1750171817438,1.52190784,652.32,652.15,1.265]
[1750171818842,1.52190784,652.32,652.16,1.23]
[1750171819040,1.52190784,652.3,652.16,1.23]
[1750171819539,1.52190784,652.29,652.16,1.23]
[1750171823944,1.52190784,652.31,652.16,1.23]
[1750171825244,1.52190784,652.33,652.16,1.23]
[1750171825541,1.52190784,652.35,652.16,1.23]
[1750171826441,1.52190784,652.34,652.16,1.23]
[1750171827645,1.52190784,652.35,652.16,1.23]
[1750171827944,1.52190784,652.35,652.16,2.332]
[1750171828143,1.52190784,652.36,652.16,2.332]
[1750171829345,1.52190784,652.37,652.16,2.332]
[1750171829542,1.52190784,652.38,652.16,2.332]
[1750171829742,0.26679956,652.42,652.16,2.332]
[1750171833346,0.26679956,652.42,652.17,1.645]
[1750171839550,1.7887074,652.42,652.17,1.645]
[1750171839750,1.52190784,652.41,652.17,1.645]
[1750171840151,1.52190784,652.4,652.17,1.645]
[1750171840950,1.52190784,652.39,652.17,1.645]
[1750171841149,1.52190784,652.38,652.17,1.645]
[1750171841748,1.52190784,652.39,652.17,1.645]
[1750171842653,0.26679956,652.42,652.17,1.645]
[1750171845551,1.52190784,652.59,652.17,1.645]
[1750171845855,3.80514393,653.45,652.17,1.645]
[1750171845856,0.2667607,652.52,652.18,1.418]
[1750171846958,1.52190784,652.59,652.18,1.418]
[1750171847154,1.52190784,652.62,652.18,1.418]
[1750171847354,1.78861947,652.64,652.18,1.418]
[1750171847553,0.26671163,652.64,652.18,1.418]
[1750171852163,1.52190784,652.85,652.18,1.418]
[1750171852460,0.2666728,652.76,652.18,1.418]
[1750171855066,0.2666728,652.76,652.19,1.522]
[1750171873176,0.2666728,652.76,652.17,1.645]
[1750171875383,0.2666728,652.76,651.85,1.1486633]
[1750171875681,0.2666728,652.76,651.86,1.1486633]
[1750171875881,0.2666728,652.76,651.85,1.1486633]
[1750171876081,0.2666728,652.76,651.84,1.1486633]
[1750171876278,0.2666728,652.76,651.85,1.1486633]
[1750171876683,0.2666728,652.76,651.86,1.419]
[1750171877084,0.2666728,652.76,651.87,1.352]
[1750171877780,0.2666728,652.76,651.88,1.671]
[1750171878585,0.2666728,652.76,651.89,1.379]
[1750171887389,0.2666728,652.76,651.89,2.5276633]
[1750171887689,1.78858064,652.76,651.92,1.1486633]
[1750171888189,0.2666728,652.76,651.92,1.1486633]
[1750171888385,0.2666728,652.76,651.93,1.1486633]
[1750171889091,0.2666728,652.76,651.95,1.1486633]
[1750171889486,0.2666728,652.76,651.97,1.1486633]
[1750171889790,0.2666728,652.76,651.98,1.1486633]
[1750171890291,0.2666728,652.76,651.99,1.1486633]
[1750171890487,0.2666728,652.76,652.0,1.1486633]
[1750171891192,0.2666728,652.76,652.01,1.414]
[1750171899195,1.78858064,652.76,652.01,1.414]
[1750171899491,1.78858064,652.76,652.02,1.571]
[1750171900391,1.52190784,652.75,652.02,1.571]
[1750171900896,1.52190784,652.75,652.03,1.269]
[1750171901099,0.2666728,652.76,652.03,1.269]
[1750171901297,1.52760112,652.74,652.03,1.269]
[1750171901495,1.52760112,652.71,652.03,1.269]
[1750171902194,1.52760112,652.7,652.03,1.269]
[1750171902490,0.2666728,652.76,652.03,1.269]
[1750171902491,1.52760112,652.69,652.03,1.269]
[1750171902893,1.52760112,652.7,652.03,1.269]
[1750171903398,1.52760112,652.69,652.03,1.269]
[1750171904300,1.52760112,652.68,652.03,1.269]
[1750171905100,1.52760112,652.65,652.03,1.269]
[1750171905598,1.52760112,652.62,652.03,1.269]
[1750171908698,1.52760112,652.61,652.03,1.269]
[1750171909495,1.52760112,652.63,652.03,1.269]
[1750171910298,1.52760112,652.62,652.03,1.269]
[1750171911499,1.52760112,652.63,652.03,1.269]
[1750171911700,1.52760112,652.62,652.03,1.269]
[1750171912301,1.52760112,652.63,652.03,1.269]
[1750171912799,1.52760112,652.62,652.03,1.269]
[1750171915906,1.52760112,652.62,652.04,1.521]
[1750171916305,1.52760112,652.61,652.04,1.521]
[1750171917007,1.52760112,652.61,652.05,1.398]
[1750171917307,1.52760112,652.62,652.05,1.398]
[1750171917507,1.52760112,652.6,652.05,1.398]
[1750171917704,1.52760112,652.56,652.05,1.398]
[1750171918003,1.52760112,652.52,652.05,1.398]
[1750171918609,1.52760112,652.51,652.05,1.398]
[1750171919309,1.52760112,652.52,652.05,1.398]
[1750171919514,1.52760112,652.53,652.05,1.398]
[1750171919813,1.52760112,652.52,652.05,1.398]
[1750171920209,1.52760112,652.53,652.05,1.398]
[1750171921808,1.52760112,652.54,652.05,1.398]
[1750171922513,1.52760112,652.55,652.05,1.398]
[1750171923215,1.52760112,652.54,652.05,1.398]
[1750171923617,1.52760112,652.55,652.05,1.398]
[1750171924011,1.52760112,652.54,652.05,1.398]
[1750171924219,1.52760112,652.55,652.05,1.398]
[1750171924621,1.52760112,652.56,652.05,1.398]
[1750171925715,1.52760112,652.57,652.05,1.398]
[1750171925920,1.83408165,652.57,652.05,1.398]
[1750171926615,0.30648522,652.56,652.05,1.398]
[1750171929120,0.30648522,652.56,652.06,1.087]
[1750171932222,1.52760112,652.53,652.06,1.087]
[1750171932519,1.52760112,652.54,652.07,1.658]
[1750171932918,1.52760112,652.53,652.07,1.658]
[1750171933222,1.52760112,652.5,652.07,1.658]
[1750171933422,1.52760112,652.54,652.07,1.658]
[1750171934324,1.52760112,652.51,652.07,1.658]
[1750171935223,1.52760112,652.52,652.07,1.658]
[1750171935722,1.52760112,652.55,652.07,1.658]
[1750171936520,1.83408634,652.56,652.07,1.658]
[1750171937533,0.30648522,652.56,652.07,1.658]
[1750171943133,0.30648522,652.56,652.08,1.031]
[1750171943337,1.83408634,652.56,652.08,2.091]
[1750171944138,1.52760112,652.53,652.08,2.091]
[1750171944333,0.30650401,652.52,652.08,2.091]
[1750171944935,1.52760112,652.5,652.09,1.338]
[1750171945140,0.3065181,652.49,652.09,1.338]
[1750171955950,0.3065181,652.49,652.1,1.451]
[1750171956347,1.52760112,652.48,652.1,1.451]
[1750171957047,0.3065181,652.49,652.1,1.451]
[1750171957048,1.52760112,652.46,652.1,1.451]
[1750171957349,1.52760112,652.45,652.1,1.451]
[1750171958454,1.52760112,652.44,652.1,1.451]
[1750171960758,1.52760112,652.43,652.1,1.451]
[1750171962356,1.52760112,652.42,652.1,1.451]
[1750171963261,1.52760112,652.41,652.1,1.451]
[1750171964263,0.3065181,652.49,652.1,1.451]
[1750171964264,1.52760112,652.42,652.1,1.451]
[1750171965061,1.52760112,652.41,652.1,1.451]
[1750171965666,1.52760112,652.4,652.1,1.451]
[1750171966262,1.52760112,652.41,652.1,1.451]
[1750171967563,1.52760112,652.4,652.1,1.451]
[1750171967965,1.52760112,652.41,652.1,1.451]
[1750171968266,1.52760112,652.4,652.1,1.451]
[1750171968666,1.52760112,652.45,652.11,1.078]
[1750171969370,1.52760112,652.44,652.11,1.078]
[1750171970068,1.52760112,652.45,652.12,1.242]
[1750171970265,1.52760112,652.44,652.12,1.242]
[1750171972265,1.52760112,652.43,652.12,1.242]
[1750171974072,1.52760112,652.42,652.12,1.242]
[1750171974272,1.52760112,652.41,652.12,1.242]
[1750171975269,1.52760112,652.4,652.13,1.374]
[1750171976373,0.3065181,652.49,652.13,1.374]
[1750171976374,1.52760112,652.38,652.13,1.374]
[1750171977174,0.3065181,652.49,652.13,1.374]
[1750171985978,1.52689464,652.36,652.13,1.374]
[1750171986180,1.52689464,652.37,652.13,1.374]
[1750171986480,1.52689464,652.36,652.13,1.374]
[1750171986678,1.52689464,652.34,652.13,1.374]
[1750171986874,1.52689464,652.32,652.13,1.374]
[1750171987377,1.52689464,652.34,652.13,1.374]
[1750171988182,1.52689464,652.33,652.13,1.374]
[1750171991785,1.52689464,652.35,652.13,1.374]
[1750171996289,1.52689464,652.36,652.13,1.374]
[1750171996885,0.3065181,652.49,652.13,1.374]
[1750171996886,1.52689464,652.35,652.13,1.374]
[1750171997090,1.52689464,652.32,652.13,1.374]
[1750171997288,1.52689464,652.32,652.12,1.242]
[1750171998090,1.52689464,652.32,652.1,1.451]
[1750171998691,1.52689464,652.31,652.1,1.451]
[1750171999993,1.52689464,652.31,652.11,1.216]
[1750172000789,1.52689464,652.31,652.12,1.349]
[1750172001693,1.52689464,652.28,652.12,1.349]
[1750172001993,1.52689464,652.32,652.12,1.349]
[1750172002693,1.52689464,652.34,652.12,1.349]
[1750172004293,1.52689464,652.33,652.12,1.349]
[1750172005796,1.52689464,652.32,652.12,1.349]
[1750172005997,1.52689464,652.33,652.12,1.349]
[1750172006192,1.52689464,652.32,652.12,1.349]
[1750172006894,1.52689464,652.36,652.12,1.349]
[1750172007297,1.52689464,652.37,652.12,1.349]
[1750172009497,1.52689464,652.38,652.12,1.349]
[1750172012199,1.52689464,652.37,652.13,1.59]
[1750172012397,1.52689464,652.38,652.13,1.59]
[1750172012599,1.52689464,652.37,652.13,1.59]
[1750172015198,1.52689464,652.36,652.13,1.59]
[1750172015596,1.52689464,652.37,652.13,1.59]
[1750172016801,1.52689464,652.33,652.13,1.59]
[1750172018597,1.52689464,652.32,652.13,1.59]
[1750172019302,1.52689464,652.28,652.14,1.219]
[1750172021903,1.52689464,652.29,652.14,1.219]
[1750172022100,1.52689464,652.28,652.14,1.219]
[1750172023903,1.52689464,652.29,652.14,1.219]
[1750172024101,1.52689464,652.3,652.14,1.219]
[1750172025906,1.52689464,652.31,652.14,1.219]
[1750172026202,0.3065181,652.49,652.14,1.219]
[1750172026606,0.3065181,652.49,652.15,1.256]
[1750172028810,1.5254274,652.36,652.15,1.256]
[1750172029010,1.5254274,652.37,652.15,1.256]
[1750172032309,1.5254274,652.36,652.15,1.256]
[1750172033008,1.5254274,652.35,652.15,1.256]
[1750172033706,1.5254274,652.36,652.15,1.256]
[1750172034510,1.5254274,652.33,652.15,1.256]
[1750172038727,1.5254274,652.34,652.15,1.256]
[1750172040211,1.5254274,652.35,652.16,1.418]
[1750172041014,1.5254274,652.34,652.16,1.418]
[1750172042114,1.5254274,652.33,652.16,1.418]
[1750172042518,1.5254274,652.34,652.16,1.418]
[1750172042718,1.5254274,652.33,652.16,1.418]
[1750172043420,1.5254274,652.32,652.16,1.418]
[1750172043618,1.5254274,652.33,652.16,1.418]
[1750172045724,1.5254274,652.34,652.16,1.418]
[1750172046023,1.5254274,652.33,652.16,1.418]
[1750172046520,1.5254274,652.34,652.16,1.418]
[1750172047018,1.5254274,652.33,652.16,1.418]
[1750172047217,1.5254274,652.34,652.16,1.418]
[1750172047422,1.5254274,652.35,652.16,1.418]
[1750172049324,1.5254274,652.34,652.16,1.418]
[1750172049926,0.3065181,652.49,652.16,1.418]
[1750172052528,0.26682308,652.41,652.16,1.418]
[1750172053024,0.26682308,652.41,652.17,1.324]
[1750172059931,1.5254274,652.35,652.17,1.324]
[1750172060531,1.5254274,652.39,652.17,1.324]
[1750172060832,1.5254274,652.39,652.18,1.449]
[1750172063238,1.5254274,652.35,652.18,1.449]
[1750172063534,1.5254274,652.32,652.18,1.449]
[1750172064138,1.5254274,652.31,652.18,1.449]
[1750172064436,1.5254274,652.32,652.18,1.449]
[1750172066143,1.5254274,652.33,652.18,1.449]
[1750172067642,1.5254274,652.34,652.18,1.449]
[1750172068343,1.5254274,652.35,652.18,1.449]
[1750172068741,1.5254274,652.33,652.18,1.449]
[1750172069346,1.5254274,652.34,652.18,1.449]
[1750172070546,1.5254274,652.35,652.18,1.449]
[1750172071244,1.5254274,652.34,652.18,1.449]
[1750172072243,1.5254274,652.35,652.18,1.449]
[1750172073143,1.5254274,652.32,652.18,1.449]
[1750172073848,1.5254274,652.32,652.19,1.639]
[1750172075549,1.5254274,652.33,652.19,1.639]
[1750172077649,1.5254274,652.32,652.19,1.639]
[1750172077947,1.5254274,652.31,652.19,1.639]
[1750172078146,1.5254274,652.3,652.19,1.639]
[1750172082350,1.5254274,652.29,652.19,1.639]
[1750172082548,1.5254274,652.3,652.19,1.639]
[1750172082853,1.5254274,652.4,652.19,1.639]
[1750172083552,1.79225048,652.41,652.19,1.639]
[1750172083850,1.5254274,652.4,652.19,1.639]
[1750172084153,1.79225048,652.41,652.19,1.639]
[1750172085048,1.5254274,652.4,652.19,1.639]
[1750172086250,0.26682308,652.41,652.19,1.639]
[1750172086251,1.5254274,652.39,652.19,1.639]
[1750172088053,1.5254274,652.38,652.19,1.639]
[1750172088456,1.5254274,652.39,652.19,1.639]
[1750172089558,1.5254274,652.38,652.19,1.639]
[1750172090755,1.5254274,652.39,652.19,1.639]
[1750172092355,0.26682308,652.41,652.19,1.639]
[1750172092356,1.5254274,652.38,652.19,1.639]
[1750172092560,1.5254274,652.31,652.19,1.639]
[1750172092960,1.5254274,652.31,652.18,1.449]
[1750172094660,1.5254274,652.31,652.19,1.215]
[1750172098662,0.26682308,652.41,652.19,1.215]
[1750172098862,1.52476218,652.3,652.19,1.215]
[1750172101065,2.55496418,652.41,652.19,1.215]
[1750172101667,0.26682308,652.41,652.19,1.215]
[1750172102366,0.26682308,652.41,652.2,1.418]
[1750172102571,1.52469894,652.27,652.2,1.418]
[1750172104271,1.52469894,652.33,652.2,1.418]
[1750172104769,1.52469894,652.37,652.2,1.418]
[1750172105171,1.52469894,652.36,652.2,1.418]
[1750172107978,1.52469894,652.35,652.2,1.418]
[1750172108475,1.52469894,652.36,652.2,1.418]
[1750172109474,1.52469894,652.35,652.2,1.418]
[1750172109675,1.52469894,652.36,652.2,1.418]
[1750172109876,1.52469894,652.35,652.2,1.418]
[1750172110075,1.52469894,652.36,652.2,1.418]
[1750172110677,1.52469894,652.37,652.2,1.418]
[1750172112379,1.52469894,652.37,652.21,1.614]
[1750172113179,1.52469894,652.35,652.21,1.614]
[1750172113478,1.52469894,652.36,652.21,1.614]
[1750172114276,1.52469894,652.33,652.21,1.614]
[1750172114475,1.52469894,652.34,652.21,1.614]
[1750172115081,1.52469894,652.33,652.21,1.614]
[1750172117780,1.52469894,652.33,652.22,1.674]
[1750172118380,1.52469894,652.34,652.22,1.674]
[1750172119780,1.52469894,652.33,652.22,1.674]
[1750172120583,1.52469894,652.31,652.22,1.674]
[1750172123188,1.52469894,652.3,652.22,1.674]
[1750172123384,1.52469894,652.32,652.22,1.674]
[1750172124987,1.52469894,652.31,652.22,1.674]
[1750172125792,1.52469894,652.35,652.22,1.674]
[1750172126488,1.52469894,652.34,652.22,1.674]
[1750172126991,1.52469894,652.35,652.22,1.674]
[1750172127791,1.52469894,652.34,652.22,1.674]
[1750172130790,1.52469894,652.37,652.22,1.674]
[1750172131089,1.52469894,652.33,652.22,1.674]
[1750172131694,1.52469894,652.32,652.22,1.674]
[1750172135596,1.52469894,652.3,652.22,1.674]
[1750172139203,1.52469894,652.31,652.22,1.674]
[1750172139503,1.52469894,652.3,652.22,1.674]
[1750172139701,1.52469894,652.31,652.22,1.674]
[1750172140105,1.52469894,652.3,652.22,1.674]
[1750172140700,1.52469894,652.26,652.22,1.674]
[1750172140905,1.52469894,652.26,652.21,1.614]
[1750172141706,1.52469894,652.28,652.21,1.614]
[1750172142707,1.52469894,652.27,652.21,1.614]
[1750172144604,1.52469894,652.29,652.21,1.614]
[1750172146806,1.52469894,652.28,652.21,1.614]
[1750172147406,1.52469894,652.29,652.21,1.614]
[1750172147911,1.52469894,652.32,652.21,1.614]
[1750172149111,1.52469894,652.31,652.21,1.614]
[1750172151413,1.52469894,652.37,652.21,1.614]
[1750172153314,1.52469894,652.37,652.18,1.42]
[1750172155119,1.52469894,652.37,652.19,1.389]
[1750172157917,1.52469894,652.36,652.19,1.389]
[1750172158716,1.52469894,652.35,652.19,1.389]
[1750172158915,1.52469894,652.36,652.19,1.389]
[1750172160320,1.52469894,652.4,652.19,1.389]
[1750172160521,1.52469894,652.38,652.19,1.389]
[1750172161220,1.52469894,652.37,652.19,1.389]
[1750172161415,1.52469894,652.34,652.19,1.389]
[1750172162820,1.52469894,652.33,652.19,1.389]
[1750172164021,1.52469894,652.34,652.19,1.389]
[1750172167623,1.52469894,652.35,652.19,1.389]
[1750172169921,1.52469894,652.34,652.19,1.389]
[1750172170222,1.52469894,652.27,652.19,1.389]
[1750172170426,1.52469894,652.24,652.19,1.389]
[1750172171221,1.52469894,652.22,652.19,1.389]
[1750172171525,1.52469894,652.23,652.19,1.389]
[1750172172522,1.52469894,652.24,652.19,1.389]
[1750172174430,1.52469894,652.25,652.19,1.389]
[1750172174923,1.52469894,652.21,652.19,1.389]
[1750172175528,1.52469894,652.22,652.19,1.389]
[1750172177824,1.79157011,652.22,652.19,1.389]
[1750172178328,0.26687117,652.22,652.19,1.389]
[1750172180224,1.79157011,652.22,652.19,1.389]
[1750172181731,1.52469894,652.21,652.19,1.389]
[1750172181929,1.79157011,652.22,652.19,1.389]
[1750172182130,1.52469894,652.21,652.19,1.389]
[1750172182430,1.79157011,652.22,652.19,1.389]
[1750172183029,1.52469894,652.2,652.19,1.389]
[1750172184834,0.26687117,652.22,652.19,1.389]
[1750172194744,1.52469894,652.2,652.19,1.389]
[1750172196340,0.26687117,652.22,652.19,1.389]
[1750172197343,1.79157011,652.22,652.19,1.389]
[1750172197543,0.26687117,652.22,652.19,1.389]
[1750172199245,0.26687117,652.22,652.13,1.647]
[1750172199945,1.52469894,652.19,652.13,1.647]
[1750172200446,0.26687117,652.22,652.13,1.647]
[1750172201143,2.55391958,652.22,652.13,1.647]
[1750172201543,0.26687117,652.22,652.13,1.647]
[1750172201946,2.5936981,652.21,652.13,1.647]
[1750172202145,0.3066544,652.2,652.13,1.647]
[1750172202749,2.28704841,652.18,652.13,1.647]
[1750172203249,2.28704841,652.17,652.13,1.647]
[1750172203449,2.28704841,652.18,652.13,1.647]
[1750172203646,2.28704841,652.19,652.13,1.647]
[1750172204045,2.59370281,652.2,652.13,1.647]
[1750172204246,0.3066544,652.2,652.13,1.647]
[1750172208448,0.26692848,652.19,652.13,1.647]
[1750172208654,0.3066638,652.18,652.13,1.647]
[1750172209048,1.51676825,652.14,652.13,1.647]
[1750172209249,1.82345086,652.14,652.13,1.647]
[1750172210557,0.30668261,652.14,652.13,1.647]
[1750172210852,1.82345086,652.14,652.13,1.647]
[1750172211457,0.30668261,652.14,652.13,1.647]
[1750172214755,0.30668261,652.14,652.05,1.317]
[1750172215160,1.82345086,652.14,652.05,1.317]
[1750172215361,1.51676825,652.13,652.05,1.317]
[1750172215559,0.30669201,652.12,652.05,1.317]
[1750172217264,1.82346026,652.12,652.05,1.317]
[1750172217464,0.30669201,652.12,652.05,1.317]
[1750172217662,1.82346026,652.12,652.05,1.317]
[1750172219263,1.51676825,652.11,652.05,1.317]
[1750172219563,0.30670142,652.1,652.05,1.317]
[1750172220064,1.82346967,652.1,652.05,1.317]
[1750172221062,0.30670142,652.1,652.05,1.317]
[1750172221359,1.82346967,652.1,652.05,1.317]
[1750172221663,1.51676825,652.06,652.05,1.317]
[1750172222063,0.30670142,652.1,652.05,1.317]
[1750172222260,1.51632398,652.06,652.05,1.317]
[1750172222465,0.30670142,652.1,652.05,1.317]
[1750172223262,1.51636416,652.07,652.05,1.317]
[1750172223567,0.30670142,652.1,652.05,1.317]
[1750172223963,1.51637675,652.08,652.05,1.317]
[1750172224162,0.30671553,652.07,652.05,1.317]
[1750172224763,1.82309228,652.07,652.05,1.317]
[1750172225366,0.30671553,652.07,652.05,1.317]
[1750172225567,1.82309228,652.07,652.05,1.317]
[1750172226165,0.30671553,652.07,652.05,1.317]
[1750172226666,1.82309228,652.07,652.05,1.317]
[1750172227163,0.30671553,652.07,652.05,1.317]
[1750172227566,1.82309228,652.07,652.05,1.317]
[1750172227866,0.30671553,652.07,652.05,1.317]
[1750172235773,0.30671553,652.07,651.89,1.368]
[1750172238170,0.30671553,652.07,651.9,1.481]
[1750172239977,1.82309228,652.07,651.9,1.481]
[1750172241274,1.51637675,652.05,651.9,1.481]
[1750172241779,1.51637675,652.02,651.9,1.481]
[1750172242073,0.30674376,652.01,651.9,1.481]
[1750172242479,1.82343687,652.01,651.9,1.481]
[1750172242676,0.30674376,652.01,651.9,1.481]
[1750172242879,1.82343687,652.01,651.9,1.481]
[1750172243280,0.30674376,652.01,651.9,1.481]
[1750172243579,1.82343687,652.01,651.9,1.481]
[1750172244478,1.51669311,652.0,651.9,1.481]
[1750172245181,0.30675317,651.99,651.9,1.481]
[1750172245581,1.51669311,651.97,651.9,1.481]
[1750172245784,0.30676728,651.96,651.9,1.481]
[1750172251591,1.82346039,651.96,651.9,1.481]
[1750172252394,0.30676728,651.96,651.9,1.481]
[1750172252690,1.51669311,651.91,651.9,1.481]
[1750172253089,0.30676728,651.96,651.9,1.481]
[1750172254192,0.30676728,651.96,651.89,1.368]
[1750172257999,1.51939657,651.9,651.89,1.368]
[1750172258297,1.82619209,651.9,651.89,1.368]
[1750172258500,0.30679552,651.9,651.89,1.368]
[1750172272112,0.30679552,651.9,651.82,1.334]
[1750172272412,1.51951751,651.84,651.82,1.334]
[1750172272912,0.30679552,651.9,651.82,1.334]
[1750172274014,2.58183518,651.9,651.82,1.334]
[1750172274615,0.30679552,651.9,651.82,1.334]
[1750172275511,2.58183518,651.9,651.82,1.334]
[1750172277416,0.30679552,651.9,651.82,1.334]
[1750172281519,1.51992724,651.83,651.82,1.334]
[1750172282016,1.8267557,651.83,651.82,1.334]
[1750172282419,0.30682846,651.83,651.82,1.334]
[1750172292126,1.8267557,651.83,651.82,1.334]
[1750172292330,0.30682846,651.83,651.82,1.334]
[1750172292523,1.82751783,651.83,651.82,1.334]
[1750172293231,0.30682846,651.83,651.82,1.334]
[1750172299138,0.30682846,651.83,651.69,1.142]
[1750172299339,1.52185157,651.77,651.69,1.142]
[1750172301139,1.52185157,651.79,651.69,1.142]
[1750172302240,1.52185157,651.82,651.69,1.142]
[1750172302840,1.82868003,651.83,651.69,1.142]
[1750172303836,1.52185157,651.82,651.69,1.142]
[1750172304040,0.30682846,651.83,651.69,1.142]
[1750172306941,1.82868003,651.83,651.69,1.142]
[1750172307643,1.52185157,651.81,651.69,1.142]
[1750172308145,1.52185157,651.82,651.69,1.142]
[1750172308537,1.82868003,651.83,651.69,1.142]
[1750172309142,0.30682846,651.83,651.69,1.142]
[1750172309342,1.52185157,651.82,651.69,1.142]
[1750172309739,1.52185157,651.81,651.69,1.142]
[1750172310238,0.30682846,651.83,651.69,1.142]
[1750172310239,1.52185157,651.82,651.69,1.142]
[1750172311344,0.30682846,651.83,651.69,1.142]
[1750172319452,0.30682846,651.83,651.7,1.418]
[1750172324155,0.30682846,651.83,651.71,1.489]
[1750172347256,0.30682846,651.83,651.72,1.6]
[1750172367275,0.30682846,651.83,651.66,2.675]
[1750172368981,0.30682846,651.83,651.67,1.199]
[1750172369478,0.30682846,651.83,651.68,1.696]
[1750172380191,1.52037985,651.81,651.68,1.696]
[1750172380490,1.52037985,651.8,651.68,1.696]
[1750172381194,1.52037985,651.77,651.68,1.696]
[1750172381688,1.52037985,651.78,651.68,1.696]
[1750172382393,1.52037985,651.81,651.68,1.696]
[1750172382692,1.52037985,651.82,651.68,1.696]
[1750172382995,0.30683788,651.81,651.68,1.696]
[1750172386290,1.52037985,651.79,651.68,1.696]
[1750172386490,0.26692848,652.19,651.68,1.696]
[1750172386491,1.52037985,651.73,651.68,1.696]
[1750172386693,0.30687554,651.73,651.67,1.199]
[1750172387093,0.30687554,651.73,650.52,1.14777548]
[1750172387394,1.51758976,651.5,650.5,1.14777548]
[1750172387590,1.51758976,651.53,650.48,1.14777548]
[1750172387793,1.51758976,651.51,650.47,1.14777548]
[1750172387995,1.51758976,651.5,650.47,1.14777548]
[1750172388494,1.51758976,651.47,650.49,1.14777548]
[1750172388693,1.51758976,651.49,650.44,1.14777548]
[1750172388991,1.51758976,651.53,650.39,1.14777548]
[1750172389494,1.51758976,651.58,650.4,1.699]